[Event "Championnat du monde jeunes U12F"]
[Date "2024.11.16"]
[White "Xikmatkhonova, Mokhinur"]
[Black "Abak, Tuana"]
[WhiteElo "1726"]
[BlackElo "1806"]
[Round "2.8"]
[Result "0-1"]
[TimeControl "5400+30"]

1. e4 {[%clk 1:30:48]} 1... c5 {[%clk 1:30:56]} 2. Nf3 {[%clk 1:31:11]} 2... d6
{[%clk 1:31:22]} 3. d4 {[%clk 1:31:35]} 3... cxd4 {[%clk 1:31:49]} 4. Nxd4
{[%clk 1:32:04]} 4... Nf6 {[%clk 1:32:12]} 5. Nc3 {[%clk 1:32:23]} 5... g6
{[%clk 1:32:38]} 6. Be3 {[%clk 1:32:44]} 6... Bg7 {[%clk 1:33:02]} 7. f3 {[%clk
1:33:09]} 7... O-O {[%clk 1:33:12]} 8. Qd2 {[%clk 1:33:35]} 8... Nc6 {[%clk
1:33:38]} 9. O-O-O {[%clk 1:33:57]} 9... d5 {[%clk 1:34:01]} 10. exd5 {[%clk
1:34:14]} 10... Nxd5 {[%clk 1:32:20]} 11. Nxc6 {[%clk 1:34:37]} 11... bxc6
{[%clk 1:32:38]} 12. Bd4 {[%clk 1:35:00]} 12... e5 {[%clk 1:32:59]} 13. Bc5
{[%clk 1:35:02]} 13... Be6 {[%clk 1:32:27]} 14. Ne4 {[%clk 1:28:05]} 14... Re8
{[%clk 1:32:51]} 15. g4 {[%clk 1:28:09]} 15... Nf4 {[%clk 1:20:40]} 16. Qxd8
{[%clk 1:18:52]} 16... Rexd8 {[%clk 1:21:01]} 17. Ba6 {[%clk 1:19:00]} 17... Rd5
{[%clk 1:16:55]} 18. b3 {[%clk 0:55:06]} 18... f5 {[%clk 1:07:42]} 19. gxf5
{[%clk 0:52:42]} 19... gxf5 {[%clk 1:08:06]} 20. Rxd5 {[%clk 0:48:43]} 20...
Bxd5 {[%clk 1:08:33]} 21. Nd6 {[%clk 0:37:03]} 21... Ne6 {[%clk 0:54:14]} 22.
Ba3 {[%clk 0:22:25]} 22... Nd4 {[%clk 0:45:49]} 23. Bc5 {[%clk 0:20:06]} 23...
Ne6 {[%clk 0:43:20]} 24. Ba3 {[%clk 0:19:46]} 24... Rf8 {[%clk 0:32:50]} 25. Nc8
{[%clk 0:15:25]} 25... Rf7 {[%clk 0:32:28]} 26. Ne7+ {[%clk 0:11:29]} 26... Kh8
{[%clk 0:32:56]} 27. Bc8 {[%clk 0:09:20]} 27... Nd4 {[%clk 0:30:46]} 28. Nxd5
{[%clk 0:04:40]} 28... cxd5 {[%clk 0:30:39]} 29. Bb2 {[%clk 0:03:56]} 29... Nxf3
{[%clk 0:29:32]} 30. Be6 {[%clk 0:03:55]} 30... Rf8 {[%clk 0:29:49]} 31. Bxd5
{[%clk 0:04:09]} 31... Nh4 {[%clk 0:28:44]} 32. Ba3 {[%clk 0:03:51]} 32... Rd8
{[%clk 0:28:14]} 33. c4 {[%clk 0:03:36]} 33... Ng6 {[%clk 0:28:35]} 34. Rd1
{[%clk 0:02:58]} 34... e4 {[%clk 0:27:28]} 35. Bc5 {[%clk 0:02:00]} 35... Nf4
{[%clk 0:26:28]} 36. Bxa7 {[%clk 0:01:24]} 36... Ne2+ {[%clk 0:25:28]} 37. Kc2
{[%clk 0:00:35]} 37... Nc3 {[%clk 0:25:58]} 38. Rd2 {[%clk 0:00:56]} 38... Nxa2
{[%clk 0:26:18]} 39. Bd4 {[%clk 0:00:51]} 39... Nb4+ {[%clk 0:26:43]} 40. Kc3
{[%clk 0:00:56]} 40... Nxd5+ {[%clk 0:26:47]} 41. cxd5 {[%clk 0:01:23]} 41...
Rc8+ {[%clk 0:25:17]} 42. Kb2 {[%clk 0:00:43]} 42... Bxd4+ {[%clk 0:25:29]} 43.
Rxd4 {[%clk 0:01:08]} 43... Kg7 {[%clk 0:25:54]} 44. d6 {[%clk 0:01:28]} 44...
Kf6 {[%clk 0:26:18]} 45. d7 {[%clk 0:01:26]} 45... Rd8 {[%clk 0:26:47]} 46. b4
{[%clk 0:00:35]} 46... Ke6 {[%clk 0:27:13]} 47. Kc3 {[%clk 0:00:32]} 47... Rxd7
{[%clk 0:27:38]} 48. Rc4 {[%clk 0:00:33]} 48... Rd3+ {[%clk 0:28:02]} 49. Kc2
{[%clk 0:01:01]} 49... Rh3 {[%clk 0:28:22]} 50. b5 {[%clk 0:00:57]} 50... Rxh2+
{[%clk 0:28:46]} 51. Kc3 {[%clk 0:01:17]} 51... Rh1 {[%clk 0:29:07]} 52. Kd4
{[%clk 0:00:37]} 52... Rd1+ {[%clk 0:29:16]} 53. Ke3 {[%clk 0:00:32]} 53... Rb1
{[%clk 0:29:16]} 54. Rc5 {[%clk 0:00:39]} 54... h5 {[%clk 0:29:40]} 55. Kf4
{[%clk 0:00:57]} 55... Rf1+ {[%clk 0:29:56]} 56. Kg5 {[%clk 0:00:52]} 56... h4
{[%clk 0:29:55]} 57. Kxh4 {[%clk 0:01:02]} 57... Rg1 {[%clk 0:30:21]} 58. b6
{[%clk 0:01:20]} 58... Rg8 {[%clk 0:30:16]} 59. b7 {[%clk 0:01:18]} 59... Rb8
{[%clk 0:30:16]} 60. Kg5 {[%clk 0:01:41]} 60... Rxb7 {[%clk 0:30:29]} 61. Rxf5
{[%clk 0:02:10]} 61... Rb3 {[%clk 0:30:13]} 62. Kf4 {[%clk 0:02:22]} 62... Rf3+
{[%clk 0:30:37]} 0-1

[Variant "Standard"]
[Site "Europe Echecs"]

[Event "Championnat du monde jeunes U12F"]
[Date "2024.11.16"]
[White "Illes-Nagy, Nora"]
[Black "Bohatyrova, Mariia"]
[WhiteElo "1803"]
[BlackElo "1722"]
[Round "2.9"]
[Result "0-1"]
[TimeControl "5400+30"]

1. d4 {[%clk 1:30:58]} 1... Nf6 {[%clk 1:30:53]} 2. c4 {[%clk 1:31:21]} 2... e6
{[%clk 1:31:14]} 3. Nc3 {[%clk 1:31:44]} 3... c5 {[%clk 1:31:35]} 4. d5 {[%clk
1:32:02]} 4... exd5 {[%clk 1:31:59]} 5. cxd5 {[%clk 1:32:25]} 5... d6 {[%clk
1:32:24]} 6. e4 {[%clk 1:32:34]} 6... g6 {[%clk 1:32:26]} 7. h3 {[%clk 1:32:18]}
7... a6 {[%clk 1:32:09]} 8. a4 {[%clk 1:32:16]} 8... Bg7 {[%clk 1:31:58]} 9. Nf3
{[%clk 1:31:53]} 9... O-O {[%clk 1:31:49]} 10. Bd3 {[%clk 1:31:20]} 10... Nbd7
{[%clk 1:30:32]} 11. Bf4 {[%clk 1:26:25]} 11... Qe7 {[%clk 1:26:26]} 12. O-O
{[%clk 1:11:03]} 12... Ne8 {[%clk 1:20:19]} 13. Qc2 {[%clk 1:05:41]} 13... Nc7
{[%clk 1:13:26]} 14. Nd2 {[%clk 0:59:13]} 14... Ne5 {[%clk 0:58:56]} 15. Nc4
{[%clk 0:54:38]} 15... Nxc4 {[%clk 0:57:26]} 16. Bxc4 {[%clk 0:55:01]} 16... Rb8
{[%clk 0:56:01]} 17. a5 {[%clk 0:53:10]} 17... b5 {[%clk 0:55:18]} 18. axb6
{[%clk 0:53:28]} 18... Rxb6 {[%clk 0:55:44]} 19. Qe2 {[%clk 0:44:25]} 19... Re8
{[%clk 0:49:22]} 20. Rae1 {[%clk 0:41:02]} 20... Bd7 {[%clk 0:40:26]} 21. Bg3
{[%clk 0:31:44]} 21... Nb5 {[%clk 0:24:39]} 22. Nxb5 {[%clk 0:27:52]} 22... Rxb5
{[%clk 0:18:03]} 23. b3 {[%clk 0:16:36]} 23... Rb4 {[%clk 0:15:07]} 24. Qd3
{[%clk 0:13:17]} 24... Bb5 {[%clk 0:07:15]} 25. f4 {[%clk 0:11:52]} 25... Bxc4
{[%clk 0:06:03]} 26. bxc4 {[%clk 0:12:19]} 26... Bd4+ {[%clk 0:06:05]} 27. Kh1
{[%clk 0:11:49]} 27... Qb7 {[%clk 0:04:18]} 28. Rb1 {[%clk 0:09:05]} 28... a5
{[%clk 0:03:09]} 29. Rxb4 {[%clk 0:07:24]} 29... axb4 {[%clk 0:03:25]} 30. Rf3
{[%clk 0:06:09]} 30... Qe7 {[%clk 0:02:39]} 31. e5 {[%clk 0:04:09]} 31... Qd7
{[%clk 0:00:45]} 32. exd6 {[%clk 0:04:04]} 32... Qxd6 {[%clk 0:01:05]} 33. f5
{[%clk 0:03:58]} 33... Qa6 {[%clk 0:01:09]} 34. d6 {[%clk 0:01:57]} 34... Rd8
{[%clk 0:01:04]} 35. fxg6 {[%clk 0:02:01]} 35... hxg6 {[%clk 0:01:29]} 36. Kh2
{[%clk 0:01:48]} 36... Qa1 {[%clk 0:01:16]} 37. Rf1 {[%clk 0:02:10]} 37... Qc3
{[%clk 0:01:16]} 38. Qe2 {[%clk 0:02:17]} 38... Qe3 {[%clk 0:00:57]} 39. Qxe3
{[%clk 0:01:14]} 39... Bxe3 {[%clk 0:01:24]} 40. Rd1 {[%clk 0:01:20]} 40... Kg7
{[%clk 0:01:07]} 41. Be5+ {[%clk 0:01:01]} 41... f6 {[%clk 0:01:11]} 42. Bg3
{[%clk 0:01:17]} 42... Bd4 {[%clk 0:01:08]} 43. Rd3 {[%clk 0:01:10]} 43... Rd7
{[%clk 0:00:44]} 44. Bf4 {[%clk 0:01:17]} 44... Kf7 {[%clk 0:00:34]} 45. h4
{[%clk 0:01:07]} 45... Ke6 {[%clk 0:00:37]} 46. Kg3 {[%clk 0:01:06]} 46... Rb7
{[%clk 0:00:34]} 47. Rb3 {[%clk 0:01:27]} 47... Be5 {[%clk 0:00:54]} 48. Kf3
{[%clk 0:01:42]} 48... Kxd6 {[%clk 0:00:52]} 49. Ke4 {[%clk 0:01:54]} 49... Bxf4
{[%clk 0:00:53]} 50. Kxf4 {[%clk 0:02:22]} 50... Ke6 {[%clk 0:00:56]} 51. g4
{[%clk 0:02:45]} 51... Rd7 {[%clk 0:01:04]} 52. Re3+ {[%clk 0:03:08]} 52... Kf7
{[%clk 0:01:29]} 53. h5 {[%clk 0:03:10]} 53... Rd4+ {[%clk 0:01:29]} 54. Kg3
{[%clk 0:03:36]} 54... gxh5 {[%clk 0:01:49]} 55. gxh5 {[%clk 0:04:04]} 55...
Rxc4 {[%clk 0:02:03]} 56. Kf2 {[%clk 0:04:04]} 56... Rh4 {[%clk 0:02:07]} 57. h6
{[%clk 0:04:17]} 57... Rxh6 {[%clk 0:02:32]} 0-1

[Variant "Standard"]
[Site "Europe Echecs"]

[Event "Championnat du monde jeunes U12F"]
[Date "2024.11.16"]
[White "Sinkar, Anagha Aniket"]
[Black "Jordan, Christina"]
[WhiteElo "1723"]
[BlackElo "1803"]
[Round "2.10"]
[Result "1-0"]
[TimeControl "5400+30"]

1. e4 {[%clk 1:30:37]} 1... c5 {[%clk 1:30:52]} 2. c3 {[%clk 1:30:57]} 2... Nf6
{[%clk 1:31:06]} 3. e5 {[%clk 1:30:55]} 3... Nd5 {[%clk 1:31:29]} 4. Nf3 {[%clk
1:30:46]} 4... Nc6 {[%clk 1:31:10]} 5. Bc4 {[%clk 1:30:33]} 5... Nb6 {[%clk
1:30:58]} 6. Bb3 {[%clk 1:29:56]} 6... d5 {[%clk 1:27:03]} 7. exd6 {[%clk
1:28:40]} 7... Qxd6 {[%clk 1:27:24]} 8. O-O {[%clk 1:27:13]} 8... Bg4 {[%clk
1:25:47]} 9. Bxf7+ {[%clk 1:24:07]} 9... Kd8 {[%clk 1:22:04]} 10. h3 {[%clk
1:19:23]} 10... Qf6 {[%clk 1:08:13]} 11. hxg4 {[%clk 1:19:11]} 11... Qxf7 {[%clk
1:08:34]} 12. d4 {[%clk 1:18:37]} 12... c4 {[%clk 0:56:03]} 13. Qe2 {[%clk
1:15:40]} 13... h5 {[%clk 0:42:09]} 14. Ng5 {[%clk 1:13:20]} 14... Qf6 {[%clk
0:40:56]} 15. gxh5 {[%clk 1:12:18]} 15... g6 {[%clk 0:29:21]} 16. hxg6 {[%clk
1:11:33]} 16... Qxg6 {[%clk 0:29:46]} 17. Qg4 {[%clk 1:10:28]} 17... Ke8 {[%clk
0:26:04]} 18. Qe6 {[%clk 1:08:52]} 18... Qg7 {[%clk 0:23:28]} 19. Ne4 {[%clk
1:07:56]} 19... Kd8 {[%clk 0:18:14]} 20. Qf5 {[%clk 1:01:23]} 20... Rg8 {[%clk
0:11:13]} 21. Bg5 {[%clk 0:58:48]} 21... Nd7 {[%clk 0:02:40]} 22. d5 {[%clk
0:58:16]} 22... Nce5 {[%clk 0:02:46]} 23. d6 {[%clk 0:57:43]} 23... Nf7 {[%clk
0:01:26]} 24. dxe7+ {[%clk 0:57:09]} 24... Bxe7 {[%clk 0:01:43]} 25. Bxe7+
{[%clk 0:57:18]} 25... Kxe7 {[%clk 0:02:11]} 26. Ng3 {[%clk 0:57:29]} 26... Rae8
{[%clk 0:01:44]} 27. Na3 {[%clk 0:56:44]} 27... Nd6 {[%clk 0:01:09]} 28. Rfe1+
{[%clk 0:56:46]} 28... Kd8 {[%clk 0:01:35]} 29. Rxe8+ {[%clk 0:56:48]} 29...
Rxe8 {[%clk 0:01:57]} 30. Qa5+ {[%clk 0:57:01]} 30... b6 {[%clk 0:01:08]} 31.
Qxa7 {[%clk 0:57:16]} 31... Rh8 {[%clk 0:00:56]} 32. Rd1 {[%clk 0:57:12]} 32...
Nc8 {[%clk 0:00:47]} 33. Qb7 {[%clk 0:57:24]} 33... Qh7 {[%clk 0:00:46]} 34.
Nxc4 {[%clk 0:57:28]} 34... Rf8 {[%clk 0:00:36]} 35. Ne5 {[%clk 0:57:46]} 1-0

[Variant "Standard"]
[Site "Europe Echecs"]

[Event "Championnat du monde jeunes U12F"]
[Date "2024.11.16"]
[White "Li, Sophie"]
[Black "Tsinjoviniavo, Aina Mahasambatra"]
[WhiteElo "1798"]
[BlackElo "1716"]
[Round "2.11"]
[Result "1-0"]
[TimeControl "5400+30"]

1. d4 {[%clk 1:30:56]} 1... d5 {[%clk 1:30:30]} 2. c4 {[%clk 1:31:14]} 2... e6
{[%clk 1:30:34]} 3. Nc3 {[%clk 1:31:34]} 3... Nf6 {[%clk 1:29:53]} 4. Nf3 {[%clk
1:31:31]} 4... c5 {[%clk 1:25:33]} 5. dxc5 {[%clk 1:27:12]} 5... Bxc5 {[%clk
1:25:04]} 6. Bg5 {[%clk 1:25:18]} 6... Qb6 {[%clk 1:24:40]} 7. e3 {[%clk
1:21:20]} 7... Qxb2 {[%clk 1:24:04]} 8. Qc1 {[%clk 1:20:24]} 8... Ba3 {[%clk
1:18:02]} 9. Ne2 {[%clk 1:17:11]} 9... Bb4+ {[%clk 1:13:53]} 10. Kd1 {[%clk
1:17:28]} 10... Qxc1+ {[%clk 1:13:40]} 11. Rxc1 {[%clk 1:17:13]} 11... Ne4
{[%clk 1:13:50]} 12. Bh4 {[%clk 1:17:20]} 12... Bd7 {[%clk 1:13:34]} 13. Ned4
{[%clk 1:14:45]} 13... Ba4+ {[%clk 1:12:38]} 14. Nb3 {[%clk 1:12:45]} 14... Nc3+
{[%clk 1:12:29]} 15. Kc2 {[%clk 1:12:17]} 15... Nxa2 {[%clk 1:11:18]} 16. Ra1
{[%clk 1:12:00]} 16... Nc3 {[%clk 1:11:34]} 17. cxd5 {[%clk 1:09:10]} 17... exd5
{[%clk 1:08:47]} 18. Rxa4 {[%clk 1:07:32]} 18... Nxa4 {[%clk 1:08:35]} 19. Bb5+
{[%clk 1:07:54]} 19... Nd7 {[%clk 1:08:53]} 20. Bxa4 {[%clk 1:07:58]} 20... a6
{[%clk 1:07:17]} 21. Bxd7+ {[%clk 1:07:07]} 21... Kxd7 {[%clk 1:07:37]} 22. Rd1
{[%clk 1:07:22]} 22... Rhc8+ {[%clk 1:06:48]} 23. Kb1 {[%clk 1:06:18]} 23... Rc3
{[%clk 1:06:29]} 24. Kb2 {[%clk 1:06:16]} 24... a5 {[%clk 1:01:42]} 25. Rxd5+
{[%clk 1:05:32]} 25... Kc6 {[%clk 0:58:17]} 26. Rd4 {[%clk 1:03:12]} 26... f6
{[%clk 0:58:23]} 27. Bg3 {[%clk 1:02:14]} 27... Kb5 {[%clk 0:55:31]} 28. Rd7
{[%clk 1:00:51]} 28... Ka4 {[%clk 0:52:58]} 29. Nfd4 {[%clk 0:59:13]} 29... b5
{[%clk 0:51:00]} 30. Bd6 {[%clk 0:54:34]} 30... Rac8 {[%clk 0:43:55]} 31. Bxb4
{[%clk 0:52:02]} 31... Kxb4 {[%clk 0:44:17]} 32. Rb7 {[%clk 0:52:14]} 32...
Rxb3+ {[%clk 0:40:45]} 33. Nxb3 {[%clk 0:52:33]} 33... a4 {[%clk 0:40:23]} 34.
Nd4 {[%clk 0:52:43]} 34... Rc5 {[%clk 0:40:11]} 35. Rxg7 {[%clk 0:52:30]} 35...
a3+ {[%clk 0:38:07]} 36. Ka2 {[%clk 0:50:35]} 36... Rc1 {[%clk 0:38:07]} 37. Rb7
{[%clk 0:48:23]} 37... Rc5 {[%clk 0:38:06]} 38. Rxh7 {[%clk 0:48:25]} 38... Kc3
{[%clk 0:37:55]} 39. Rc7 {[%clk 0:48:04]} 39... Kb4 {[%clk 0:36:35]} 40. Rxc5
{[%clk 0:48:30]} 40... Kxc5 {[%clk 0:36:56]} 41. Kxa3 {[%clk 0:48:55]} 41... Kc4
{[%clk 0:37:00]} 42. Nxb5 {[%clk 0:49:19]} 42... Kxb5 {[%clk 0:37:25]} 43. Kb3
{[%clk 0:49:46]} 43... Kc5 {[%clk 0:37:41]} 44. Kc3 {[%clk 0:50:07]} 44... Kd5
{[%clk 0:38:05]} 45. Kd3 {[%clk 0:50:16]} 45... Ke5 {[%clk 0:38:22]} 46. f4+
{[%clk 0:50:40]} 46... Kf5 {[%clk 0:38:43]} 47. h3 {[%clk 0:51:06]} 47... Kg6
{[%clk 0:39:08]} 48. g4 {[%clk 0:51:33]} 48... Kh6 {[%clk 0:39:23]} 49. h4
{[%clk 0:52:00]} 49... Kg6 {[%clk 0:39:48]} 50. g5 {[%clk 0:52:27]} 50... f5
{[%clk 0:40:08]} 51. Kd4 {[%clk 0:52:53]} 51... Kh5 {[%clk 0:40:23]} 52. Ke5
{[%clk 0:53:19]} 52... Kg6 {[%clk 0:40:48]} 53. h5+ {[%clk 0:53:45]} 53... Kxh5
{[%clk 0:41:05]} 54. Kxf5 {[%clk 0:54:12]} 54... Kh4 {[%clk 0:41:25]} 55. g6
{[%clk 0:54:39]} 55... Kg3 {[%clk 0:41:52]} 56. g7 {[%clk 0:55:07]} 56... Kf3
{[%clk 0:42:08]} 57. e4 {[%clk 0:55:29]} 57... Ke3 {[%clk 0:42:21]} 58. g8=Q
{[%clk 0:55:55]} 58... Kf3 {[%clk 0:42:36]} 59. Qg4+ {[%clk 0:56:16]} 59... Ke3
{[%clk 0:42:49]} 60. e5 {[%clk 0:55:46]} 1-0

[Variant "Standard"]
[Site "Europe Echecs"]

[Event "Championnat du monde jeunes U12F"]
[Date "2024.11.16"]
[White "Allahverdi, Zahra"]
[Black "Rzadkowska, Kaja"]
[WhiteElo "1718"]
[BlackElo "1798"]
[Round "2.12"]
[Result "1/2-1/2"]
[TimeControl "5400+30"]

1. d4 {[%clk 1:30:57]} 1... Nf6 {[%clk 1:30:55]} 2. c4 {[%clk 1:31:17]} 2... e6
{[%clk 1:31:20]} 3. g3 {[%clk 1:31:41]} 3... d5 {[%clk 1:31:37]} 4. Bg2 {[%clk
1:32:00]} 4... dxc4 {[%clk 1:30:17]} 5. Qa4+ {[%clk 1:31:17]} 5... Nbd7 {[%clk
1:30:04]} 6. Nf3 {[%clk 1:31:02]} 6... a6 {[%clk 1:28:45]} 7. Nc3 {[%clk
1:29:54]} 7... Be7 {[%clk 1:23:29]} 8. O-O {[%clk 1:27:11]} 8... O-O {[%clk
1:20:15]} 9. Qxc4 {[%clk 1:26:51]} 9... b5 {[%clk 1:18:43]} 10. Qd3 {[%clk
1:24:31]} 10... Bb7 {[%clk 1:17:22]} 11. Ng5 {[%clk 1:21:15]} 11... Bxg2 {[%clk
1:16:44]} 12. Kxg2 {[%clk 1:21:36]} 12... h6 {[%clk 1:06:39]} 13. Nh3 {[%clk
1:13:31]} 13... c5 {[%clk 1:03:04]} 14. dxc5 {[%clk 1:00:01]} 14... Bxc5 {[%clk
0:59:36]} 15. Be3 {[%clk 0:57:00]} 15... Qe7 {[%clk 0:55:26]} 16. Bxc5 {[%clk
0:47:05]} 16... Nxc5 {[%clk 0:53:50]} 17. Qf3 {[%clk 0:44:39]} 17... b4 {[%clk
0:50:29]} 18. Nd1 {[%clk 0:43:07]} 18... Rad8 {[%clk 0:44:02]} 19. Ne3 {[%clk
0:41:48]} 19... Nce4 {[%clk 0:36:57]} 20. Nc4 {[%clk 0:35:05]} 20... Rd4 {[%clk
0:35:33]} 21. Rfc1 {[%clk 0:31:56]} 21... e5 {[%clk 0:27:03]} 22. Ne3 {[%clk
0:24:44]} 22... Qe6 {[%clk 0:24:10]} 23. Nf5 {[%clk 0:11:42]} 23... Rd2 {[%clk
0:22:54]} 24. Rc6 {[%clk 0:10:46]} 24... Qd7 {[%clk 0:21:58]} 25. Rxa6 {[%clk
0:10:38]} 25... Qb5 {[%clk 0:18:06]} 26. Ra7 {[%clk 0:09:36]} 26... Rxb2 {[%clk
0:17:44]} 27. Ng1 {[%clk 0:08:41]} 27... Qc5 {[%clk 0:16:14]} 28. Ra6 {[%clk
0:07:54]} 28... Kh7 {[%clk 0:15:43]} 29. Ne3 {[%clk 0:07:33]} 29... Rd8 {[%clk
0:11:55]} 30. Ng4 {[%clk 0:06:14]} 30... Qc8 {[%clk 0:09:50]} 31. Nxf6+ {[%clk
0:06:10]} 31... Nxf6 {[%clk 0:10:18]} 32. Ra7 {[%clk 0:05:31]} 32... Qe6 {[%clk
0:10:20]} 33. a4 {[%clk 0:02:57]} 33... b3 {[%clk 0:03:19]} 34. a5 {[%clk
0:03:14]} 34... Ra2 {[%clk 0:03:28]} 35. Rb1 {[%clk 0:03:03]} 35... b2 {[%clk
0:01:57]} 36. Rb7 {[%clk 0:01:15]} 36... Rxa5 {[%clk 0:01:26]} 37. R7xb2 {[%clk
0:01:30]} 37... Rad5 {[%clk 0:01:11]} 38. Rb6 {[%clk 0:01:09]} 38... R5d6 {[%clk
0:01:26]} 39. Rxd6 {[%clk 0:01:01]} 39... Qxd6 {[%clk 0:01:29]} 40. Qf5+ {[%clk
0:01:03]} 40... g6 {[%clk 0:01:39]} 41. Qf3 {[%clk 0:01:19]} 41... Kg7 {[%clk
0:01:40]} 1/2-1/2

[Variant "Standard"]
[Site "Europe Echecs"]

[Event "Championnat du monde jeunes U12F"]
[Date "2024.11.16"]
[White "Amanzhol, Khanzada"]
[Black "Tursunalieva, Nurelina"]
[WhiteElo "1780"]
[BlackElo "1701"]
[Round "2.13"]
[Result "1-0"]
[TimeControl "5400+30"]

1. e4 {[%clk 1:29:49]} 1... c5 {[%clk 1:30:52]} 2. Nf3 d6 {[%clk 1:31:11]} 3. d4
{[%clk 1:30:25]} 3... cxd4 {[%clk 1:31:36]} 4. Qxd4 {[%clk 1:30:23]} 4... Nc6
{[%clk 1:31:45]} 5. Bb5 {[%clk 1:30:47]} 5... a6 {[%clk 1:30:19]} 6. Bxc6+
{[%clk 1:29:42]} 6... bxc6 {[%clk 1:30:44]} 7. c4 {[%clk 1:27:43]} 7... Bb7
{[%clk 1:26:40]} 8. Nc3 {[%clk 1:26:38]} 8... Qc7 {[%clk 1:20:30]} 9. O-O Nf6
{[%clk 1:18:31]} 10. b3 {[%clk 1:21:08]} 10... g6 {[%clk 1:17:06]} 11. Bb2
{[%clk 1:14:41]} 11... Bg7 {[%clk 1:17:26]} 12. Rfe1 {[%clk 1:11:21]} 12... O-O
{[%clk 1:17:32]} 13. Qd2 {[%clk 1:09:32]} 13... Rfd8 {[%clk 1:11:28]} 14. Rac1
{[%clk 1:07:46]} 14... Rac8 {[%clk 1:04:37]} 15. Qe2 {[%clk 1:04:31]} 15... e6
{[%clk 0:45:00]} 16. Na4 {[%clk 0:59:45]} 16... c5 {[%clk 0:42:25]} 17. e5
{[%clk 0:58:03]} 17... dxe5 {[%clk 0:37:59]} 18. Bxe5 {[%clk 0:57:40]} 18... Qc6
{[%clk 0:36:45]} 19. Rcd1 {[%clk 0:48:41]} 19... Ne8 {[%clk 0:16:27]} 20. Qe3
{[%clk 0:46:22]} 20... Nd6 {[%clk 0:05:26]} 21. Bxg7 {[%clk 0:40:26]} 21... Kxg7
{[%clk 0:05:44]} 22. Qe5+ {[%clk 0:40:20]} 22... Kg8 {[%clk 0:05:46]} 23. Qg5
{[%clk 0:39:22]} 23... Qc7 {[%clk 0:01:31]} 24. Qf4 {[%clk 0:35:45]} 24... Bxf3
{[%clk 0:00:53]} 25. gxf3 {[%clk 0:29:52]} 25... Qc6 {[%clk 0:00:42]} 26. Qf6
{[%clk 0:28:10]} 26... Re8 {[%clk 0:00:38]} 27. Nc3 {[%clk 0:27:29]} 27... Rc7
{[%clk 0:00:36]} 28. Qe5 {[%clk 0:27:02]} 28... Nf5 {[%clk 0:00:31]} 29. Nd5
{[%clk 0:27:00]} 29... exd5 {[%clk 0:00:36]} 30. Qxe8+ {[%clk 0:27:24]} 30...
Qxe8 {[%clk 0:00:50]} 31. Rxe8+ {[%clk 0:27:50]} 31... Kg7 {[%clk 0:01:15]} 32.
cxd5 {[%clk 0:27:57]} 32... Nd4 {[%clk 0:01:24]} 33. Kg2 {[%clk 0:28:12]} 33...
Rd7 {[%clk 0:01:29]} 34. Re5 {[%clk 0:26:57]} 34... f6 {[%clk 0:01:30]} 35. Re4
{[%clk 0:26:55]} 35... Rxd5 {[%clk 0:00:42]} 36. b4 {[%clk 0:25:02]} 36... f5
{[%clk 0:00:51]} 37. Re7+ {[%clk 0:24:06]} 37... Kf6 {[%clk 0:01:12]} 38. Rc7
{[%clk 0:23:26]} 38... cxb4 {[%clk 0:00:32]} 39. Rc4 {[%clk 0:23:36]} 39... Ke5
{[%clk 0:00:38]} 40. Rxb4 {[%clk 0:23:35]} 40... Nc6 {[%clk 0:00:35]} 41. Rxd5+
{[%clk 0:22:54]} 41... Kxd5 {[%clk 0:00:56]} 42. Rb7 {[%clk 0:23:15]} 42... h6
{[%clk 0:00:32]} 43. Rh7 {[%clk 0:23:35]} 43... h5 {[%clk 0:00:32]} 44. Rg7
{[%clk 0:24:03]} 44... a5 {[%clk 0:00:33]} 45. Rxg6 {[%clk 0:24:27]} 45... a4
{[%clk 0:00:45]} 46. Rg5 {[%clk 0:21:36]} 46... Nd4 {[%clk 0:00:35]} 47. Rxh5
{[%clk 0:21:57]} 47... Kc4 {[%clk 0:00:45]} 48. Rh4 {[%clk 0:21:21]} 48... Kc3
{[%clk 0:00:34]} 49. Rxd4 {[%clk 0:21:22]} 49... Kxd4 {[%clk 0:00:52]} 50. Kg3
{[%clk 0:21:18]} 50... a3 {[%clk 0:00:34]} 51. Kf4 {[%clk 0:20:57]} 51... Kc3
{[%clk 0:00:39]} 52. h4 {[%clk 0:21:21]} 52... Kb2 {[%clk 0:00:47]} 53. h5
{[%clk 0:21:47]} 53... Kxa2 {[%clk 0:00:56]} 54. h6 {[%clk 0:22:13]} 1-0

[Variant "Standard"]
[Site "Europe Echecs"]

[Event "Championnat du monde jeunes U12F"]
[Date "2024.11.16"]
[White "Xia, Miaoyan"]
[Black "Bassari, Senem Gul"]
[WhiteElo "1711"]
[BlackElo "1778"]
[Round "2.14"]
[Result "0-1"]
[TimeControl "5400+30"]

1. e4 {[%clk 1:30:57]} 1... c5 {[%clk 1:30:49]} 2. Nf3 {[%clk 1:31:16]} 2... d6
{[%clk 1:31:09]} 3. d4 {[%clk 1:31:30]} 3... cxd4 {[%clk 1:31:19]} 4. Nxd4
{[%clk 1:31:46]} 4... Nf6 {[%clk 1:31:39]} 5. Nc3 {[%clk 1:31:53]} 5... a6
{[%clk 1:31:58]} 6. f3 {[%clk 1:31:07]} 6... e5 {[%clk 1:30:43]} 7. Nb3 {[%clk
1:31:10]} 7... h5 {[%clk 1:30:24]} 8. Be3 {[%clk 1:30:48]} 8... Be6 {[%clk
1:30:41]} 9. Nd5 {[%clk 1:28:26]} 9... Bxd5 {[%clk 1:31:00]} 10. exd5 {[%clk
1:28:45]} 10... g6 {[%clk 1:30:43]} 11. Qd2 {[%clk 1:27:24]} 11... Nbd7 {[%clk
1:31:04]} 12. O-O-O {[%clk 1:22:06]} 12... Nb6 {[%clk 1:30:45]} 13. Qa5 {[%clk
1:14:11]} 13... Bh6 {[%clk 1:30:46]} 14. Bxh6 {[%clk 1:12:51]} 14... Rxh6 {[%clk
1:30:46]} 15. Kb1 {[%clk 1:11:54]} 15... Rc8 {[%clk 1:26:30]} 16. Be2 {[%clk
1:09:46]} 16... Kf8 {[%clk 1:24:02]} 17. h4 {[%clk 1:01:15]} 17... Qc7 {[%clk
1:22:48]} 18. c3 {[%clk 0:59:01]} 18... Rh8 {[%clk 1:20:33]} 19. c4 {[%clk
0:51:34]} 19... Kg7 {[%clk 1:13:53]} 20. Rc1 {[%clk 0:48:39]} 20... Nbd7 {[%clk
1:07:21]} 21. Qxc7 {[%clk 0:46:36]} 21... Rxc7 {[%clk 1:07:49]} 22. Bd3 {[%clk
0:46:49]} 22... Rhc8 {[%clk 1:06:38]} 23. Rc2 {[%clk 0:45:37]} 23... Ng8 {[%clk
0:55:29]} 24. Re1 {[%clk 0:40:01]} 24... f5 {[%clk 0:52:08]} 25. Na5 {[%clk
0:35:22]} 25... Ngf6 {[%clk 0:50:38]} 26. b4 {[%clk 0:31:54]} 26... e4 {[%clk
0:44:01]} 27. fxe4 {[%clk 0:30:21]} 27... Ne5 {[%clk 0:42:29]} 28. Bf1 {[%clk
0:29:16]} 28... Nxe4 {[%clk 0:40:59]} 29. c5 {[%clk 0:27:24]} 29... Kf6 {[%clk
0:24:48]} 30. Rec1 {[%clk 0:25:18]} 30... dxc5 {[%clk 0:17:53]} 31. bxc5 {[%clk
0:16:01]} 31... Rxc5 {[%clk 0:15:24]} 32. Nxb7 {[%clk 0:15:17]} 32... Nd2+
{[%clk 0:13:25]} 33. Kb2 {[%clk 0:11:08]} 33... Rxc2+ {[%clk 0:13:24]} 34. Rxc2
{[%clk 0:11:31]} 34... Rxc2+ {[%clk 0:13:51]} 35. Kxc2 {[%clk 0:11:53]} 35...
Nxf1 {[%clk 0:14:13]} 0-1

[Variant "Standard"]
[Site "Europe Echecs"]